fUST/lending_fUST_20250226
["ID","MTS","AMOUNT","RATE_DAILY","PERIOD"]
[354506121,1740543042177,-500.0,0.00038356,2]
[354506123,1740543042187,-500.0,0.00038356,2]
[354506125,1740543042198,-500.0,0.00038356,2]
[354506127,1740543042208,-500.0,0.00038356,2]
[354506129,1740543042218,-500.0,0.00038356,2]
[354506131,1740543042228,-500.0,0.00038356,2]
[354506133,1740543042237,-500.0,0.00038356,2]
[354506135,1740543042248,-500.0,0.00038356,2]
[354506137,1740543042258,-500.0,0.00038356,2]
[354506140,1740543042268,-500.0,0.00038356,2]
[354506142,1740543042278,-500.83716585,0.00038356,2]
[354506144,1740543042288,-229.6017863,0.00038356,2]
[354506146,1740543042299,-500.0,0.00038356,2]
[354506148,1740543042308,-1703.38,0.00038356,2]
[354506150,1740543042318,-1490.8,0.00038356,2]
[354506152,1740543042328,-500.0,0.00038356,2]
[354506154,1740543042337,-500.0,0.00038356,2]
[354506156,1740543042347,-500.0,0.00038356,2]
[354506158,1740543042357,-680.14,0.00038356,2]
[354506160,1740543042366,-501.20276176,0.00038356,2]
[354506163,1740543042377,-500.0,0.00038356,2]
[354506165,1740543042387,-2257.5,0.00038356,2]
[354506167,1740543042396,-500.0,0.00038356,2]
[354506169,1740543042406,-500.0,0.00038356,2]
[354506171,1740543042415,-500.0,0.00038356,2]
[354506173,1740543042425,-500.0,0.00038356,2]
[354506175,1740543042436,-500.0,0.00038356,2]
[354506177,1740543042446,-697.91,0.00038356,2]
[354506179,1740543042455,-500.0,0.00038356,2]
[354506181,1740543042464,-452.41403218,0.00038356,2]
[354506183,1740543042474,-378.6603852,0.00038356,2]
[354506185,1740543042483,-500.0,0.00038356,2]
[354506187,1740543042492,-12407.06632072,0.00038356,2]
[354506190,1740543042507,-2556.19952158,0.00038356,2]
[354506286,1740543043481,-600.61819795,0.00038356,2]
[354506332,1740543046534,-5700.71278448,0.00038356,2]
[354506333,1740543046548,-628.62214902,0.00038356,2]
[354506334,1740543047057,-16235.39193084,0.00038356,2]
[354506674,1740544168133,-294.0,0.0001499,2]
[354506732,1740544232799,-127.66651386,0.0001499,2]
[354506733,1740544232808,-5904.1740085,0.00026,30]
[354506735,1740544232817,-209.2347124,0.00032073,2]
[354506737,1740544232826,-300.0,0.00035259,2]
[354506739,1740544232836,-13214.92214725,0.00036118,2]
[354507029,1740544238514,-461.01068651,0.00036118,2]
[354507036,1740544238573,-304.82972928,0.00036118,2]
[354507088,1740544240715,-1185.57315532,0.00036118,2]
[354507090,1740544240772,-9733.66428164,0.00036118,2]
[354507091,1740544240782,-5342.1735781,0.0003623,2]
[354507092,1740544240791,-195.29557282,0.000379,2]
[354507093,1740544240801,-404.23,0.0003799,3]
[354507094,1740544240810,-202.11,0.0003799,3]
[354507095,1740544240820,-3665.76614256,0.0003799,3]
[354507096,1740544240829,-500.0,0.00037999,15]
[354507097,1740544240839,-188.96697809,0.00037999,2]
[354507098,1740544240848,-235.90286491,0.00037999,15]
[354507099,1740544240857,-36215.73739261,0.00038,120]
[354507100,1740544240868,-453.88462654,0.00038,120]
[354507101,1740544240879,-283.26920109,0.00038,120]
[354507137,1740544244222,-144864.0336147,0.00038,120]
[354507138,1740544244232,-330.9215026,0.00038,7]
[354507139,1740544244242,-162.60191816,0.00038156,2]
[354507140,1740544244251,-162.60191814,0.00038195,2]
[354507141,1740544244261,-288.57419628,0.000382,2]
[354507142,1740544244270,-288.57419627,0.000382,2]
[354507143,1740544244280,-288.57419627,0.000382,2]
[354507144,1740544244289,-162.60191814,0.00038234,2]
[354507145,1740544244299,-162.60191814,0.00038273,2]
[354507146,1740544244309,-1221.92204752,0.0003829,3]
[354507147,1740544244318,-151.0,0.000383,10]
[354507148,1740544244328,-6072.11062101,0.000383,2]
[354507149,1740544244338,-540.25218067,0.00038302,2]
[354507150,1740544244348,-1996.0,0.0003832,120]
[354507151,1740544244357,-193.315,0.0003832,51]
[354507152,1740544244367,-1221.92204752,0.00038336,3]
[354507153,1740544244376,-18328.8307128,0.00038346,3]
[354507154,1740544244387,-500.0,0.00038355,15]
[354507155,1740544244397,-493.32388649,0.00038355,15]
[354507156,1740544244407,-609.28767312,0.00038355,15]
[354507157,1740544244416,-500.01750738,0.00038356,2]
[354507158,1740544244426,-500.0,0.00038356,2]
[354507159,1740544244436,-500.0,0.00038356,2]
[354507160,1740544244446,-500.0,0.00038356,2]
[354507161,1740544244455,-500.0,0.00038356,2]
[354507162,1740544244465,-500.99810636,0.00038356,2]
[354507163,1740544244475,-500.0,0.00038356,2]
[354507164,1740544244484,-500.0,0.00038356,2]
[354507165,1740544244496,-500.0,0.00038356,2]
[354507166,1740544244510,-500.0,0.00038356,2]
[354507167,1740544244522,-500.0,0.00038356,2]
[354507168,1740544244535,-500.0,0.00038356,2]
[354507169,1740544244547,-500.0,0.00038356,2]
[354507170,1740544244557,-500.0,0.00038356,2]
[354507171,1740544244568,-500.0,0.00038356,2]
[354507172,1740544244579,-268.711182,0.00038356,2]
[354507173,1740544244588,-500.0,0.00038356,2]
[354507174,1740544244598,-500.38729324,0.00038356,2]
[354507175,1740544244607,-500.0,0.00038356,2]
[354507176,1740544244617,-500.4657768,0.00038356,2]
[354507177,1740544244626,-500.36590777,0.00038356,2]
[354507178,1740544244635,-500.63756239,0.00038356,2]
[354507179,1740544244645,-500.48437176,0.00038356,2]
[354507180,1740544244654,-500.36691538,0.00038356,2]
[354507181,1740544244663,-500.0,0.00038356,2]
[354507182,1740544244673,-500.3581686,0.00038356,2]
[354507183,1740544244683,-500.51011035,0.00038356,2]
[354507184,1740544244692,-500.0,0.00038356,2]
[354507185,1740544244702,-500.0,0.00038356,2]
[354507186,1740544244712,-500.0,0.00038356,2]
[354507187,1740544244722,-502.68936023,0.00038356,2]
[354507188,1740544244732,-500.0,0.00038356,2]
[354507189,1740544244752,-500.0,0.00038356,2]
[354507190,1740544244766,-501.06707662,0.00038356,2]
[354507191,1740544244780,-500.0,0.00038356,2]
[354507192,1740544244793,-500.34671204,0.00038356,2]
[354507193,1740544244807,-500.0,0.00038356,2]
[354507194,1740544244819,-500.0,0.00038356,2]
[354507195,1740544244830,-500.0,0.00038356,2]
[354507196,1740544244841,-499.57514846,0.00038356,2]
[354507197,1740544244853,-500.0,0.00038356,2]
[354507198,1740544244865,-501.44939652,0.00038356,2]
[354507199,1740544244877,-500.0,0.00038356,2]
[354507200,1740544244888,-500.0,0.00038356,2]
[354507201,1740544244900,-500.59046663,0.00038356,2]
[354507202,1740544244912,-500.0,0.00038356,2]
[354507203,1740544244924,-500.0,0.00038356,2]
[354507204,1740544244936,-500.0,0.00038356,2]
[354507205,1740544244948,-500.0,0.00038356,2]
[354507206,1740544244960,-500.0,0.00038356,2]
[354507207,1740544244973,-500.0,0.00038356,2]
[354507208,1740544244985,-500.0,0.00038356,2]
[354507209,1740544244998,-500.0,0.00038356,2]
[354507210,1740544245010,-500.0,0.00038356,2]
[354507211,1740544245022,-500.0,0.00038356,2]
[354507212,1740544245034,-501.10578943,0.00038356,2]
[354507213,1740544245045,-500.0,0.00038356,2]
[354507214,1740544245059,-500.0,0.00038356,2]
[354507215,1740544245070,-500.0,0.00038356,2]
[354507216,1740544245082,-500.0,0.00038356,2]
[354507217,1740544245094,-500.0,0.00038356,2]
[354507218,1740544245106,-502.11864898,0.00038356,2]
[354507219,1740544245119,-500.0,0.00038356,2]
[354507220,1740544245136,-500.0,0.00038356,2]
[354507221,1740544245148,-500.0,0.00038356,2]
[354507222,1740544245159,-500.49171364,0.00038356,2]
[354507223,1740544245169,-500.0,0.00038356,2]
[354507224,1740544245180,-1000.0,0.00038356,2]
[354507225,1740544245191,-500.0,0.00038356,2]
[354507226,1740544245203,-500.35406128,0.00038356,2]
[354507227,1740544245213,-500.0,0.00038356,2]
[354507228,1740544245225,-500.0,0.00038356,2]
[354507229,1740544245238,-500.0,0.00038356,2]
[354507230,1740544245250,-500.0,0.00038356,2]
[354507231,1740544245262,-503.44570902,0.00038356,2]
[354507232,1740544245275,-500.0,0.00038356,2]
[354507233,1740544245286,-500.0,0.00038356,2]
[354507234,1740544245299,-500.76243506,0.00038356,2]
[354507235,1740544245311,-500.0,0.00038356,2]
[354507236,1740544245324,-500.0,0.00038356,2]
[354507237,1740544245336,-500.87233798,0.00038356,2]
[354507238,1740544245349,-500.0,0.00038356,2]
[354507239,1740544245362,-500.0,0.00038356,2]
[354507240,1740544245373,-500.0,0.00038356,2]
[354507241,1740544245383,-229.01440771,0.00038356,2]
[354507242,1740544245394,-500.0,0.00038356,2]
[354507243,1740544245404,-500.0,0.00038356,2]
[354507244,1740544245414,-500.0,0.00038356,2]
[354507245,1740544245425,-501.24451295,0.00038356,2]
[354507246,1740544245437,-500.0,0.00038356,2]
[354507247,1740544245449,-502.25661019,0.00038356,2]
[354507248,1740544245462,-502.94646917,0.00038356,2]
[354507249,1740544245475,-377.08708115,0.00038356,2]
[354507250,1740544245487,-500.0,0.00038356,2]
[354507251,1740544245498,-500.0,0.00038356,2]
[354507252,1740544245510,-500.0,0.00038356,2]
[354507253,1740544245521,-500.0,0.00038356,2]
[354507254,1740544245532,-500.0,0.00038356,2]
[354507255,1740544245544,-580.10412807,0.00038356,2]
[354507256,1740544245554,-500.0,0.00038356,2]
[354507257,1740544245566,-500.62334662,0.00038356,2]
[354507258,1740544245577,-500.0,0.00038356,2]
[354507259,1740544245588,-500.0,0.00038356,2]
[354507260,1740544245599,-500.0,0.00038356,2]
[354507261,1740544245610,-500.0,0.00038356,2]
[354507262,1740544245623,-500.0,0.00038356,2]
[354507263,1740544245634,-514.21538256,0.00038356,2]
[354507264,1740544245644,-500.0,0.00038356,2]
[354507265,1740544245655,-500.37721322,0.00038356,2]
[354507266,1740544245666,-500.0,0.00038356,2]
[354507267,1740544245676,-500.0,0.00038356,2]
[354507268,1740544245687,-500.0,0.00038356,2]
[354507269,1740544245698,-500.0,0.00038356,2]
[354507270,1740544245710,-500.0,0.00038356,2]
[354507271,1740544245721,-500.0,0.00038356,2]
[354507272,1740544245732,-500.0,0.00038356,2]
[354507273,1740544245743,-500.0,0.00038356,2]
[354507274,1740544245754,-500.0,0.00038356,2]
[354507275,1740544245771,-501.21766378,0.00038356,2]
[354507276,1740544245782,-500.0,0.00038356,2]
[354507277,1740544245800,-500.0,0.00038356,2]
[354507278,1740544245818,-504.51842692,0.00038356,2]
[354507279,1740544245832,-500.0,0.00038356,2]
[354507280,1740544245845,-503.74851802,0.00038356,2]
[354507281,1740544245858,-500.0,0.00038356,2]
[354507282,1740544245871,-500.0,0.00038356,2]
[354507283,1740544245884,-500.0,0.00038356,2]
[354507284,1740544245898,-513.77109495,0.00038356,2]
[354507285,1740544245910,-500.0,0.00038356,2]
[354507286,1740544245923,-422.99057028,0.00038356,2]
[354507287,1740544245935,-500.0,0.00038356,2]
[354507288,1740544245948,-500.0,0.00038356,2]
[354507289,1740544245959,-500.0,0.00038356,2]
[354507290,1740544245972,-500.0,0.00038356,2]
[354507291,1740544245984,-500.0,0.00038356,2]
[354507292,1740544245996,-614.48033658,0.00038356,2]
[354507293,1740544246009,-500.27761952,0.00038356,2]
[354507294,1740544246020,-500.0,0.00038356,2]
[354507295,1740544246033,-504.26508409,0.00038356,2]
[354507296,1740544246044,-500.0,0.00038356,2]
[354507297,1740544246056,-500.0,0.00038356,2]
[354507298,1740544246068,-500.0,0.00038356,2]
[354507299,1740544246079,-500.0,0.00038356,2]
[354507300,1740544246091,-500.0,0.00038356,2]
[354507301,1740544246103,-500.0,0.00038356,2]
[354507302,1740544246113,-500.0,0.00038356,2]
[354507304,1740544246125,-500.0,0.00038356,2]
[354507305,1740544246136,-500.0,0.00038356,2]
[354507307,1740544246148,-508.77208539,0.00038356,2]
[354507308,1740544246159,-500.0,0.00038356,2]
[354507309,1740544246171,-500.0,0.00038356,2]
[354507310,1740544246183,-500.0,0.00038356,2]
[354507311,1740544246195,-500.0,0.00038356,2]
[354507312,1740544246206,-500.0,0.00038356,2]
[354507313,1740544246218,-500.0,0.00038356,2]
[354507314,1740544246230,-500.0,0.00038356,2]
[354507315,1740544246241,-500.0,0.00038356,2]
[354507316,1740544246252,-500.0,0.00038356,2]
[354507317,1740544246262,-500.0,0.00038356,2]
[354507318,1740544246273,-500.0,0.00038356,2]
[354507319,1740544246285,-500.0,0.00038356,2]
[354507320,1740544246296,-500.0,0.00038356,2]
[354507321,1740544246307,-500.32815901,0.00038356,2]
[354507322,1740544246318,-500.0,0.00038356,2]
[354507323,1740544246329,-500.0,0.00038356,2]
[354507324,1740544246340,-306.71231268,0.00038356,2]
[354507325,1740544246351,-500.0,0.00038356,2]
[354507326,1740544246362,-500.0,0.00038356,2]
[354507327,1740544246373,-500.0,0.00038356,2]
[354507328,1740544246384,-500.91674221,0.00038356,2]
[354507329,1740544246395,-500.0,0.00038356,2]
[354507330,1740544246406,-500.34967889,0.00038356,2]
[354507331,1740544246418,-502.297655,0.00038356,2]
[354507332,1740544246429,-500.0,0.00038356,2]
[354507333,1740544246440,-500.0,0.00038356,2]
[354507334,1740544246450,-500.0,0.00038356,2]
[354507335,1740544246461,-517.04338396,0.00038356,2]
[354507336,1740544246473,-500.0,0.00038356,2]
[354507337,1740544246484,-500.0,0.00038356,2]
[354507338,1740544246499,-500.0,0.00038356,2]
[354507339,1740544246510,-500.0,0.00038356,2]
[354507340,1740544246522,-500.0,0.00038356,2]
[354507341,1740544246534,-500.0,0.00038356,2]
[354507342,1740544246545,-500.0,0.00038356,2]
[354507343,1740544246556,-500.0,0.00038356,2]
[354507344,1740544246566,-500.0,0.00038356,2]
[354507345,1740544246578,-500.0,0.00038356,2]
[354507346,1740544246589,-508.95310613,0.00038356,2]
[354507347,1740544246600,-155.44938243,0.00038356,2]
[354507348,1740544246611,-500.0,0.00038356,2]
[354507349,1740544246622,-300.0,0.00038356,120]
[354507350,1740544246632,-500.0,0.00038356,2]
[354507351,1740544246642,-500.0,0.00038356,2]
[354507352,1740544246653,-427.14305601,0.00038356,50]
[354507353,1740544246665,-500.0,0.00038356,2]
[354507354,1740544246675,-500.0,0.00038356,2]
[354507355,1740544246686,-291.57279135,0.00038356,2]
[354507356,1740544246698,-500.0,0.00038356,2]
[354507357,1740544246708,-501.88786708,0.00038356,2]
[354507358,1740544246719,-500.0,0.00038356,2]
[354507359,1740544246729,-500.0,0.00038356,2]
[354507360,1740544246740,-500.0,0.00038356,2]
[354507361,1740544246751,-503.68412067,0.00038356,2]
[354507362,1740544246761,-500.0,0.00038356,2]
[354507363,1740544246771,-500.0,0.00038356,2]
[354507364,1740544246781,-500.0,0.00038356,2]
[354507365,1740544246792,-500.0,0.00038356,2]
[354507366,1740544246802,-500.0,0.00038356,2]
[354507367,1740544246813,-500.0,0.00038356,2]
[354507368,1740544246824,-500.0,0.00038356,2]
[354507369,1740544246834,-500.0,0.00038356,2]
[354507370,1740544246845,-500.0,0.00038356,2]
[354507371,1740544246855,-501.49900631,0.00038356,2]
[354507372,1740544246866,-500.0,0.00038356,2]
[354507373,1740544246876,-500.0,0.00038356,2]
[354507374,1740544246887,-500.0,0.00038356,2]
[354507375,1740544246898,-502.62616333,0.00038356,2]
[354507376,1740544246909,-500.0,0.00038356,2]
[354507377,1740544246919,-500.0,0.00038356,2]
[354507378,1740544246929,-500.0,0.00038356,2]
[354507379,1740544246940,-500.0,0.00038356,2]
[354507380,1740544246950,-500.0,0.00038356,2]
[354507381,1740544246960,-500.0,0.00038356,2]
[354507382,1740544246972,-500.0,0.00038356,2]
[354507383,1740544246982,-500.0,0.00038356,2]
[354507384,1740544246993,-500.0,0.00038356,2]
[354507385,1740544247003,-501.89024376,0.00038356,2]
[354507386,1740544247014,-500.0,0.00038356,2]
[354507387,1740544247024,-500.0,0.00038356,2]
[354507388,1740544247035,-500.0,0.00038356,2]
[354507389,1740544247046,-500.0,0.00038356,2]
[354507390,1740544247056,-501.07509968,0.00038356,2]
[354507391,1740544247067,-500.0,0.00038356,2]
[354507392,1740544247078,-500.0,0.00038356,2]
[354507393,1740544247088,-500.0,0.00038356,2]
[354507394,1740544247099,-500.0,0.00038356,2]
[354507395,1740544247110,-500.0,0.00038356,2]
[354507396,1740544247121,-500.29479642,0.00038356,2]
[354507397,1740544247132,-500.0,0.00038356,2]
[354507398,1740544247142,-609.9,0.00038356,2]
[354507399,1740544247153,-503.11871147,0.00038356,2]
[354507400,1740544247164,-500.0,0.00038356,2]
[354507401,1740544247175,-500.0,0.00038356,2]
[354507402,1740544247185,-500.0,0.00038356,2]
[354507403,1740544247195,-500.0,0.00038356,2]
[354507404,1740544247205,-500.0,0.00038356,2]
[354507405,1740544247215,-500.0,0.00038356,2]
[354507406,1740544247225,-500.0,0.00038356,2]
[354507407,1740544247235,-500.0,0.00038356,2]
[354507408,1740544247245,-506.36,0.00038356,2]
[354507413,1740544247536,-500.0,0.00038356,2]
[354507414,1740544247547,-500.0,0.00038356,2]
[354507415,1740544247557,-500.0,0.00038356,2]
[354507416,1740544247567,-500.0,0.00038356,2]
[354507417,1740544247577,-500.0,0.00038356,2]
[354507418,1740544247587,-501.09649719,0.00038356,2]
[354507419,1740544247596,-1000.0,0.00038356,30]
[354507420,1740544247605,-500.0,0.00038356,2]
[354507421,1740544247615,-502.0239884,0.00038356,2]
[354507422,1740544247624,-500.0,0.00038356,2]
[354507423,1740544247633,-500.769834,0.00038356,2]
[354507424,1740544247642,-599.67891065,0.00038356,2]
[354507425,1740544247652,-500.0,0.00038356,2]
[354507426,1740544247661,-500.0,0.00038356,2]
[354507427,1740544247671,-500.0,0.00038356,2]
[354507428,1740544247680,-330.06897509,0.00038356,2]
[354507429,1740544247689,-340.39559395,0.00038356,2]
[354507430,1740544247699,-500.0,0.00038356,2]
[354507431,1740544247708,-502.00621796,0.00038356,2]
[354507432,1740544247718,-500.0,0.00038356,2]
[354507433,1740544247727,-500.0,0.00038356,2]
[354507434,1740544247737,-500.0,0.00038356,2]
[354507435,1740544247746,-170.97746861,0.00038356,2]
[354507436,1740544247755,-500.0,0.00038356,2]
[354507437,1740544247764,-500.0,0.00038356,2]
[354507438,1740544247774,-500.0,0.00038356,2]
[354507439,1740544247783,-596.83,0.00038356,2]
[354507440,1740544247792,-500.0,0.00038356,2]
[354507441,1740544247801,-500.0,0.00038356,2]
[354507442,1740544247810,-501.32469978,0.00038356,2]
[354507443,1740544247820,-500.0,0.00038356,2]
[354507444,1740544247830,-500.0,0.00038356,2]
[354507445,1740544247839,-500.0,0.00038356,2]
[354507446,1740544247848,-500.0,0.00038356,2]
[354507447,1740544247857,-500.0,0.00038356,2]
[354507448,1740544247866,-586.25,0.00038356,2]
[354507449,1740544247876,-500.0,0.00038356,2]
[354507450,1740544247885,-500.0,0.00038356,2]
[354507451,1740544247894,-500.0,0.00038356,2]
[354507452,1740544247904,-500.0,0.00038356,2]
[354507453,1740544247913,-500.0,0.00038356,2]
[354507454,1740544247924,-500.0,0.00038356,2]
[354507455,1740544247936,-500.0,0.00038356,2]
[354507456,1740544247946,-501.97943553,0.00038356,2]
[354507457,1740544247955,-551.48,0.00038356,2]
[354507458,1740544247964,-500.0,0.00038356,2]
[354507459,1740544247974,-500.0,0.00038356,2]
[354507460,1740544247983,-500.0,0.00038356,2]
[354507461,1740544247993,-968.85,0.00038356,2]
[354507462,1740544248002,-500.0,0.00038356,2]
[354507463,1740544248011,-500.0,0.00038356,2]
[354507465,1740544248020,-500.0,0.00038356,2]
[354507467,1740544248030,-500.0,0.00038356,2]
[354507469,1740544248039,-500.0,0.00038356,2]
[354507471,1740544248049,-503.10597956,0.00038356,2]
[354507473,1740544248058,-500.0,0.00038356,2]
[354507474,1740544248068,-500.0,0.00038356,2]
[354507476,1740544248078,-500.0,0.00038356,2]
[354507478,1740544248087,-500.0,0.00038356,2]
[354507480,1740544248096,-500.0,0.00038356,2]
[354507481,1740544248106,-501.11505285,0.00038356,2]
[354507483,1740544248116,-500.68210696,0.00038356,2]
[354507484,1740544248125,-500.0,0.00038356,2]
[354507485,1740544248135,-500.0,0.00038356,2]
[354507486,1740544248145,-500.0,0.00038356,2]
[354507487,1740544248155,-631.15116738,0.00038356,2]
[354507488,1740544248164,-500.0,0.00038356,2]
[354507489,1740544248174,-500.0,0.00038356,2]
[354507491,1740544248183,-500.0,0.00038356,2]
[354507493,1740544248193,-500.0,0.00038356,2]
[354507495,1740544248202,-500.0,0.00038356,2]
[354507496,1740544248212,-500.0,0.00038356,2]
[354507498,1740544248223,-500.0,0.00038356,2]
[354507499,1740544248232,-500.0,0.00038356,2]
[354507500,1740544248242,-500.0,0.00038356,2]
[354507501,1740544248251,-500.0,0.00038356,2]
[354507502,1740544248261,-234.1638641,0.00038356,2]
[354507503,1740544248270,-500.0,0.00038356,2]
[354507504,1740544248280,-500.0,0.00038356,2]
[354507505,1740544248290,-500.0,0.00038356,2]
[354507506,1740544248299,-529.47386097,0.00038356,2]
[354507507,1740544248309,-500.0,0.00038356,2]
[354507508,1740544248319,-500.0,0.00038356,2]
[354507509,1740544248328,-500.0,0.00038356,2]
[354507510,1740544248337,-500.0,0.00038356,2]
[354507511,1740544248347,-500.0,0.00038356,2]
[354507512,1740544248357,-500.0,0.00038356,2]
[354507513,1740544248367,-500.0,0.00038356,2]
[354507514,1740544248377,-500.0,0.00038356,2]
[354507515,1740544248386,-500.0,0.00038356,2]
[354507516,1740544248395,-500.0,0.00038356,2]
[354507517,1740544248406,-507.69001637,0.00038356,2]
[354507518,1740544248416,-500.0,0.00038356,2]
[354507519,1740544248425,-500.775095,0.00038356,2]
[354507520,1740544248435,-500.0,0.00038356,2]
[354507521,1740544248445,-500.0,0.00038356,2]
[354507522,1740544248455,-500.0,0.00038356,2]
[354507523,1740544248465,-533.70090437,0.00038356,2]
[354507524,1740544248474,-500.0,0.00038356,2]
[354507525,1740544248484,-500.0,0.00038356,2]
[354507526,1740544248494,-500.0,0.00038356,2]
[354507527,1740544248509,-500.0,0.00038356,2]
[354507528,1740544248519,-500.0,0.00038356,2]
[354507529,1740544248528,-500.0,0.00038356,2]
[354507530,1740544248538,-500.0,0.00038356,2]
[354507531,1740544248549,-500.0,0.00038356,2]
[354507532,1740544248559,-500.0,0.00038356,2]
[354507533,1740544248569,-500.0,0.00038356,2]
[354507534,1740544248580,-500.0,0.00038356,2]
[354507535,1740544248589,-500.0,0.00038356,2]
[354507536,1740544248599,-500.0,0.00038356,2]
[354507537,1740544248609,-500.0,0.00038356,2]
[354507538,1740544248619,-500.0,0.00038356,2]
[354507539,1740544248628,-510.92723203,0.00038356,2]
[354507540,1740544248638,-500.0,0.00038356,2]
[354507541,1740544248647,-500.0,0.00038356,2]
[354507542,1740544248656,-685.27,0.00038356,2]
[354507543,1740544248666,-500.0,0.00038356,2]
[354507544,1740544248675,-500.0,0.00038356,2]
[354507545,1740544248684,-500.0,0.00038356,2]
[354507546,1740544248694,-500.0,0.00038356,2]
[354507547,1740544248703,-500.0,0.00038356,2]
[354507548,1740544248712,-500.0,0.00038356,2]
[354507549,1740544248723,-500.0,0.00038356,2]
[354507550,1740544248733,-500.0,0.00038356,2]
[354507551,1740544248743,-500.0,0.00038356,2]
[354507552,1740544248752,-500.0,0.00038356,2]
[354507553,1740544248762,-500.0,0.00038356,2]
[354507554,1740544248771,-500.0,0.00038356,2]
[354507555,1740544248781,-500.0,0.00038356,2]
[354507556,1740544248791,-500.0,0.00038356,2]
[354507557,1740544248800,-500.0,0.00038356,2]
[354507558,1740544248810,-500.0,0.00038356,2]
[354507559,1740544248820,-500.0,0.00038356,2]
[354507560,1740544248829,-500.0,0.00038356,2]
[354507561,1740544248838,-500.0,0.00038356,2]
[354507562,1740544248849,-500.0,0.00038356,2]
[354507563,1740544248859,-500.0,0.00038356,2]
[354507564,1740544248868,-500.0,0.00038356,2]
[354507565,1740544248878,-355.47764132,0.00038356,2]
[354507566,1740544248887,-500.0,0.00038356,2]
[354507567,1740544248897,-500.0,0.00038356,2]
[354507568,1740544248906,-318.0916926,0.00038356,2]
[354507569,1740544248916,-500.0,0.00038356,2]
[354507570,1740544248925,-500.0,0.00038356,2]
[354507571,1740544248936,-500.0,0.00038356,2]
[354507572,1740544248945,-500.0,0.00038356,2]
[354507573,1740544248955,-500.0,0.00038356,2]
[354507574,1740544248966,-500.0,0.00038356,2]
[354507575,1740544248976,-500.0,0.00038356,2]
[354507576,1740544248986,-500.0,0.00038356,2]
[354507577,1740544248996,-500.0,0.00038356,2]
[354507578,1740544249005,-500.0,0.00038356,2]
[354507579,1740544249015,-500.0,0.00038356,2]
[354507580,1740544249024,-500.0,0.00038356,2]
[354507581,1740544249034,-500.0,0.00038356,2]
[354507582,1740544249044,-500.0,0.00038356,2]
[354507583,1740544249054,-500.0,0.00038356,2]
[354507584,1740544249064,-500.0,0.00038356,2]
[354507585,1740544249074,-500.0,0.00038356,2]
[354507586,1740544249085,-500.0,0.00038356,2]
[354507587,1740544249095,-500.0,0.00038356,2]
[354507588,1740544249104,-957.55,0.00038356,2]
[354507589,1740544249114,-500.0,0.00038356,2]
[354507590,1740544249123,-500.0,0.00038356,2]
[354507591,1740544249132,-500.0,0.00038356,2]
[354507592,1740544249141,-500.0,0.00038356,2]
[354507593,1740544249151,-500.0,0.00038356,2]
[354507594,1740544249161,-500.0,0.00038356,2]
[354507595,1740544249171,-500.0,0.00038356,2]
[354507596,1740544249180,-330.35959419,0.00038356,2]